bitfinex-derivatives/quotes_BTCF0:USTF0_20240903
["timestamp","ask_amount","ask_price","bid_price","bid_amount"]
[1725330020832,3.20829312,59773.0,59757.0,0.3647]
[1725330021035,3.20829312,59773.0,59757.0,0.3608]
[1725330021036,0.15,59758.0,59757.0,0.3608]
[1725330021241,0.26,59758.0,59757.0,0.3608]
[1725330022538,0.11,59758.0,59757.0,0.3608]
[1725330025146,0.11,59758.0,59757.0,0.427734]
[1725330025340,0.11,59758.0,59757.0,0.929774]
[1725330025543,0.00025088,59763.0,59757.0,0.86284]
[1725330025729,0.12025088,59763.0,59762.0,0.3612]
[1725330026739,0.12025088,59763.0,59762.0,0.0004]
[1725330027246,0.18717788,59763.0,59762.0,0.0004]
[1725330028838,0.68917788,59763.0,59762.0,0.0004]
[1725330030942,0.18717788,59763.0,59762.0,0.0004]
[1725330031148,0.19159451,59763.0,59762.0,0.0004]
[1725330034141,1.29359451,59763.0,59762.0,0.0004]
[1725330037350,1.29359451,59763.0,59752.0,0.00025088]
[1725330037351,0.066928,59762.0,59752.0,0.00025088]
[1725330037544,0.577738,59753.0,59752.0,0.00025088]
[1725330037736,0.697738,59753.0,59752.0,0.00025088]
[1725330037941,0.698138,59753.0,59752.0,0.00025088]
[1725330038647,0.6312,59753.0,59752.0,0.00025088]
[1725330038850,0.1204,59753.0,59752.0,0.00025088]
[1725330039450,0.2704,59753.0,59752.0,0.00025088]
[1725330040354,1.44395757,59753.0,59752.0,0.00025088]
[1725330040748,1.37701957,59753.0,59743.0,0.3608]
[1725330041054,0.217348,59744.0,59743.0,0.3608]
[1725330041256,0.34568998,59744.0,59743.0,0.3608]
[1725330041850,0.27874198,59744.0,59743.0,0.3608]
[1725330043673,0.70648998,59744.0,59738.0,0.00025088]
[1725330043874,0.1504,59739.0,59738.0,0.00025088]
[1725330044074,0.2804,59739.0,59738.0,0.00025088]
[1725330047880,0.2804,59739.0,59738.0,0.42800588]
[1725330047881,0.1304,59739.0,59738.0,0.42800588]
[1725330048183,0.15025088,59749.0,59748.0,0.066944]
[1725330048475,0.26025088,59749.0,59748.0,0.067344]
[1725330051376,0.26025088,59749.0,59748.0,0.0004]
[1725330054981,1.61025088,59749.0,59748.0,0.0004]
[1725330055281,0.26025088,59749.0,59748.0,0.0004]
[1725330055670,1.68745088,59749.0,59748.0,0.0004]
[1725330056276,1.75439388,59749.0,59748.0,0.0004]
[1725330057775,0.26025088,59749.0,59748.0,0.0004]
[1725330060570,0.40419388,59749.0,59748.0,0.0004]
[1725330061076,1.75419388,59749.0,59748.0,0.0004]
[1725330061481,1.82289091,59749.0,59748.0,0.0004]
[1725330062181,0.32894465,59749.0,59748.0,0.0004]
[1725330062380,0.26025088,59749.0,59748.0,0.0004]
[1725330062976,0.11025088,59749.0,59748.0,0.428144]
[1725330064179,0.26025088,59749.0,59748.0,0.3612]
[1725330064381,0.26025088,59749.0,59748.0,0.067344]
[1725330064382,0.11025088,59749.0,59748.0,0.067344]
[1725330065686,0.26025088,59749.0,59748.0,0.0004]
[1725330066278,0.11025088,59749.0,59748.0,0.0004]
[1725330066880,0.11025088,59749.0,59748.0,0.067344]
[1725330069084,0.26025088,59749.0,59748.0,0.0004]
[1725330070584,0.26025088,59749.0,59748.0,0.3612]
[1725330070585,0.11025088,59749.0,59748.0,0.3612]
[1725330070886,0.11025088,59749.0,59748.0,0.428144]
[1725330071090,0.11325088,59749.0,59748.0,0.428144]
[1725330071782,0.11025088,59749.0,59748.0,0.433144]
[1725330072187,0.11425088,59749.0,59748.0,0.433144]
[1725330073797,0.11725088,59749.0,59748.0,0.434144]
[1725330074190,0.11725088,59749.0,59748.0,0.431144]
[1725330074587,0.11025088,59749.0,59748.0,0.430144]
[1725330074897,0.11825088,59749.0,59748.0,0.431144]
[1725330075588,0.11825088,59749.0,59748.0,0.430144]
[1725330075589,0.11925088,59749.0,59748.0,0.430144]
[1725330077093,0.11325088,59749.0,59748.0,0.429144]
[1725330077693,0.11325088,59749.0,59748.0,0.430144]
[1725330077901,0.11425088,59749.0,59748.0,0.430144]
[1725330078193,0.18953682,59749.0,59748.0,0.0024]
[1725330078392,0.18953682,59749.0,59748.0,0.0044]
[1725330078596,1.60870069,59749.0,59748.0,0.0044]
[1725330078897,1.47806996,59749.0,59748.0,0.0044]
[1725330079105,1.47806996,59749.0,59748.0,0.0024]
[1725330079398,1.54501296,59749.0,59748.0,0.0024]
[1725330080700,0.12806996,59749.0,59748.0,0.0024]
[1725330080898,0.18394145,59749.0,59748.0,0.430144]
[1725330081403,0.18694145,59749.0,59748.0,0.431144]
[1725330081986,0.18694145,59749.0,59748.0,0.429144]
[1725330082200,0.19594145,59749.0,59748.0,0.430144]
[1725330082589,0.12725088,59749.0,59748.0,0.430144]
[1725330083399,0.13581365,59749.0,59748.0,0.430144]
[1725330084000,0.12681365,59749.0,59748.0,0.429144]
[1725330084197,0.12281365,59749.0,59748.0,0.3632]
[1725330084800,0.12281365,59749.0,59748.0,0.0054]
[1725330084997,0.11881365,59749.0,59748.0,0.0054]
[1725330085196,0.11881365,59749.0,59748.0,0.0064]
[1725330085197,0.12881365,59749.0,59748.0,0.0064]
[1725330085395,0.12981365,59749.0,59748.0,0.0014]
[1725330085598,0.12125088,59749.0,59748.0,0.0014]
[1725330085798,0.12125088,59749.0,59748.0,0.3622]
[1725330086502,0.12225088,59749.0,59748.0,0.429144]
[1725330087602,0.12425088,59749.0,59748.0,0.429144]
[1725330088001,0.11025088,59749.0,59748.0,0.430144]
[1725330088304,0.11625088,59749.0,59748.0,0.431144]
[1725330088907,0.47905088,59749.0,59748.0,0.0034]
[1725330089600,0.54599388,59749.0,59748.0,0.0034]
[1725330090409,1.14599388,59749.0,59748.0,0.0034]
[1725330090596,0.066944,59748.0,59738.0,0.00025088]
[1725330090796,0.0004,59739.0,59738.0,0.00025088]
[1725330090996,0.1104,59739.0,59738.0,0.00025088]
[1725330091201,1.4604,59739.0,59738.0,0.00025088]
[1725330091604,0.1104,59739.0,59738.0,0.06720588]
[1725330091800,0.0004,59739.0,59738.0,1.68020588]
[1725330092000,0.01477008,59749.0,59748.0,0.0006]
[1725330092201,0.12477008,59749.0,59748.0,0.0006]
[1725330092596,0.12025088,59749.0,59748.0,0.0006]
[1725330092804,0.008,59739.0,59738.0,0.43200588]
[1725330093499,0.008,59739.0,59738.0,1.68320588]
[1725330093701,0.01125088,59749.0,59748.0,0.001]
[1725330093907,0.27125088,59749.0,59748.0,0.001]
[1725330094904,0.33819388,59749.0,59748.0,0.004]
[1725330095310,0.32719388,59749.0,59748.0,0.003]
[1725330095910,0.26025088,59749.0,59748.0,0.003]
[1725330096410,0.12225088,59749.0,59748.0,0.004]
[1725330097207,0.12725088,59749.0,59748.0,0.001]
[1725330097812,0.12825088,59749.0,59748.0,0.001]
[1725330099116,0.12225088,59749.0,59748.0,0.001]
[1725330099804,0.27225088,59749.0,59748.0,0.001]
[1725330100506,0.34745664,59749.0,59748.0,0.001]
[1725330100707,0.34745664,59749.0,59744.0,0.3608]
[1725330100708,0.065947,59746.0,59744.0,0.3608]
[1725330100907,0.15,59745.0,59744.0,0.3608]
[1725330101106,1.61,59745.0,59744.0,0.3608]
[1725330101313,0.26,59745.0,59744.0,0.3608]
[1725330101903,0.26,59745.0,59744.0,0.3628]
[1725330102411,0.11,59745.0,59744.0,0.3628]
[1725330102715,0.01225088,59749.0,59748.0,0.066944]
[1725330102912,0.04225088,59749.0,59748.0,0.066944]
[1725330103324,0.03025088,59749.0,59748.0,0.066944]
[1725330104214,0.04425088,59749.0,59748.0,0.067944]
[1725330104814,0.05278496,59749.0,59748.0,0.067944]
[1725330105618,0.05278496,59749.0,59748.0,0.066944]
[1725330105619,0.04078496,59749.0,59748.0,0.066944]
[1725330105918,0.05278496,59749.0,59748.0,0.067944]
[1725330106520,0.05378496,59749.0,59748.0,0.067944]
[1725330107021,0.04525088,59749.0,59748.0,0.067944]
[1725330107223,0.01325088,59749.0,59748.0,0.067944]
[1725330107424,0.01725088,59749.0,59748.0,0.067944]
[1725330107826,1.35,59762.0,59759.0,0.066931]
[1725330108019,1.35,59762.0,59748.0,1.170064]
[1725330108020,0.18788801,59762.0,59761.0,0.3608]
[1725330108421,0.066932,59759.0,59755.0,0.3608]
[1725330108622,0.15,59756.0,59755.0,0.3608]
[1725330108826,0.26,59756.0,59755.0,0.3608]
[1725330109030,0.26,59756.0,59750.0,0.32395088]
[1725330109226,0.149,59751.0,59750.0,0.32395088]
[1725330109535,0.26,59751.0,59737.0,0.3237]
[1725330109729,0.15,59741.0,59733.0,0.3608]
[1725330110031,0.259,59741.0,59740.0,0.3608]
[1725330110424,1.609,59741.0,59740.0,0.3608]
[1725330110623,0.259,59741.0,59740.0,0.3608]
[1725330111222,0.11,59741.0,59740.0,0.3608]
[1725330111423,0.00025109,59746.0,59740.0,1.46296]
[1725330111628,0.06025109,59746.0,59745.0,0.3608]
[1725330112924,0.00025109,59746.0,59745.0,0.3608]
[1725330113431,0.00125109,59746.0,59745.0,0.3618]
[1725330114027,0.00125109,59746.0,59745.0,0.428747]
[1725330114732,0.00125109,59746.0,59745.0,0.429747]
[1725330115524,0.00125109,59746.0,59745.0,0.432747]
[1725330115525,0.00225109,59746.0,59745.0,0.432747]
[1725330116441,0.00025109,59746.0,59745.0,0.431747]
[1725330117330,0.00025109,59746.0,59745.0,0.427747]
[1725330117529,0.00025109,59746.0,59745.0,0.428747]
[1725330118135,0.00025109,59746.0,59745.0,0.429747]
[1725330118836,0.00225109,59746.0,59745.0,0.429747]
[1725330119337,0.00225109,59746.0,59745.0,1.681867]
[1725330119540,0.00325109,59746.0,59745.0,1.681867]
[1725330119744,0.00325109,59746.0,59745.0,1.029747]
[1725330120248,0.00025109,59746.0,59745.0,1.028747]
[1725330120449,0.00325109,59746.0,59745.0,0.427747]
[1725330120744,0.00325109,59746.0,59745.0,0.429747]
[1725330121150,0.00325109,59746.0,59745.0,0.427747]
[1725330121336,0.00325109,59746.0,59745.0,0.430747]
[1725330121939,0.00225109,59746.0,59745.0,0.430747]
[1725330122344,0.00225109,59746.0,59745.0,0.427747]
[1725330122539,0.00225109,59746.0,59745.0,1.035747]
[1725330122744,0.00025109,59746.0,59745.0,1.035747]
[1725330122943,0.00325109,59746.0,59745.0,1.035747]
[1725330123641,0.00325109,59746.0,59745.0,0.435747]
[1725330124037,0.00325109,59746.0,59745.0,1.035747]
[1725330124643,0.00325109,59746.0,59745.0,1.030747]
[1725330126243,0.066927,59764.0,59745.0,1.46592]
[1725330126451,0.0767,59769.0,59763.0,0.3608]
[1725330126745,0.00449497,59769.0,59768.0,0.427722]
[1725330127040,0.066915,59774.0,59770.0,0.066919]
[1725330127250,0.066915,59774.0,59773.0,0.3608]
[1725330127540,0.10130222,59774.0,59773.0,0.3608]
[1725330127740,0.10130222,59774.0,59773.0,0.427716]
[1725330127741,0.03,59774.0,59773.0,0.427716]
[1725330128344,0.15,59776.0,59773.0,0.427716]
[1725330128345,0.16292371,59776.0,59773.0,0.427716]
[1725330128841,0.066912,59777.0,59773.0,0.427716]
[1725330129343,0.004,59774.0,59773.0,0.429716]
[1725330130143,0.003,59774.0,59773.0,0.429716]
[1725330130939,0.00846863,59777.0,59773.0,0.428716]
[1725330131144,0.003,59776.0,59773.0,0.429716]
[1725330131341,0.01135993,59776.0,59773.0,0.429716]
[1725330131544,0.00025109,59778.0,59773.0,0.428716]
[1725330131738,0.004,59774.0,59773.0,0.429716]
[1725330132247,0.001,59774.0,59773.0,0.3628]
[1725330132444,1.3684446,59774.0,59773.0,0.001]
[1725330132650,1.23188,59774.0,59766.0,0.00025109]
[1725330132849,0.5112,59767.0,59766.0,0.00025109]
[1725330133142,1.809083,59767.0,59766.0,0.00025109]
[1725330133345,1.74216,59767.0,59751.0,0.0039]
[1725330133545,1.74216,59767.0,59749.0,0.0084]
[1725330133546,0.067336,59755.0,59749.0,0.00196]
[1725330133738,0.0004,59750.0,59745.0,0.3237]
[1725330133942,0.0004,59746.0,59745.0,0.3237]
[1725330134141,0.15,59752.0,59745.0,0.3237]
[1725330134344,0.27,59752.0,59745.0,0.3237]
[1725330134549,1.35,59751.0,59745.0,0.3237]
[1725330134763,0.12,59751.0,59745.0,0.3237]
[1725330135043,0.119,59751.0,59749.0,0.3608]
[1725330135445,0.118,59751.0,59749.0,0.3608]
[1725330135639,1.35096001,59753.0,59749.0,0.3608]
[1725330135841,0.001,59751.0,59750.0,0.066942]
[1725330136245,0.00025109,59754.0,59753.0,0.066938]
[1725330136546,0.00025109,59754.0,59753.0,0.666938]
[1725330136850,0.00025109,59754.0,59753.0,0.648618]
[1725330137039,0.00025109,59754.0,59753.0,1.248618]
[1725330137245,0.00025109,59754.0,59753.0,0.648618]
[1725330137945,0.00025109,59754.0,59753.0,1.248618]
[1725330138345,0.00325109,59754.0,59753.0,0.001]
[1725330138940,0.07018809,59754.0,59753.0,0.001]
[1725330139143,0.27518809,59754.0,59753.0,0.001]
[1725330139350,0.27518809,59754.0,59753.0,0.0014]
[1725330140546,0.12525109,59754.0,59753.0,0.0014]
[1725330141148,0.12525109,59754.0,59753.0,0.218338]
[1725330141354,0.00525109,59754.0,59753.0,0.218338]
[1725330142149,0.00525109,59754.0,59753.0,0.068338]
[1725330142550,0.00525109,59754.0,59753.0,0.0014]
[1725330142752,0.13525109,59754.0,59753.0,0.0014]
[1725330144561,0.20218809,59754.0,59753.0,0.0014]
[1725330145660,0.13525109,59754.0,59753.0,0.0014]
[1725330145852,0.00525109,59754.0,59753.0,0.068338]
[1725330147650,0.12525109,59754.0,59753.0,0.068338]
[1725330148161,0.00525109,59754.0,59753.0,0.068338]
[1725330151548,0.00525109,59754.0,59753.0,0.218338]
[1725330151952,0.00525109,59754.0,59753.0,0.068338]
[1725330153869,0.07218809,59754.0,59753.0,0.0014]
[1725330155157,0.00525109,59754.0,59753.0,0.0014]
[1725330156667,0.00525109,59754.0,59753.0,0.068338]
[1725330158762,0.00525109,59754.0,59753.0,0.429138]
[1725330158967,0.00525109,59754.0,59753.0,0.3622]
[1725330159160,0.27525109,59754.0,59753.0,0.3622]
[1725330160873,0.12525109,59754.0,59753.0,0.3622]
[1725330166672,0.00525109,59754.0,59753.0,0.3622]
[1725330167076,0.00525109,59754.0,59753.0,0.503538]
[1725330167266,0.00525109,59754.0,59753.0,0.656438]
[1725330169168,0.0843893,59765.0,59753.0,0.656438]
[1725330169169,0.07257137,59772.0,59755.0,0.066936]
[1725330169481,0.00084,59773.0,59771.0,0.3612]
[1725330169671,0.0084759,59777.0,59774.0,0.066915]
[1725330169992,0.0747,59782.0,59776.0,0.3612]
[1725330169993,1.4247,59782.0,59776.0,0.3612]
[1725330170165,1.4647,59782.0,59781.0,0.3612]
[1725330170371,1.47321777,59782.0,59781.0,0.3612]
[1725330171175,0.12621777,59782.0,59781.0,0.3612]
[1725330171478,0.08621777,59782.0,59781.0,0.3612]
[1725330171981,0.01151777,59782.0,59781.0,0.3612]
[1725330172372,0.01151777,59782.0,59781.0,0.3622]
[1725330172373,0.01551777,59782.0,59781.0,0.3622]
[1725330172977,0.01051777,59782.0,59781.0,0.3632]
[1725330174572,0.01051777,59782.0,59781.0,0.430107]
[1725330176882,0.13051777,59782.0,59781.0,0.430107]
[1725330179082,0.13051777,59782.0,59781.0,0.3632]
[1725330179274,0.13051777,59782.0,59781.0,0.0024]
[1725330179275,0.19742377,59782.0,59781.0,0.0024]
[1725330179475,0.27742377,59782.0,59781.0,0.0024]
[1725330179680,1.45536377,59782.0,59781.0,0.0024]
[1725330180691,0.85536377,59782.0,59781.0,0.0024]
[1725330181187,0.35352377,59782.0,59781.0,0.0024]
[1725330181586,0.85536377,59782.0,59781.0,0.0024]
[1725330181781,0.35352377,59782.0,59781.0,0.0024]
[1725330184885,0.21051777,59782.0,59781.0,0.0024]
[1725330185297,1.74006377,59782.0,59781.0,0.0024]
[1725330185498,1.80873514,59782.0,59781.0,0.0024]
[1725330185698,3.15873514,59782.0,59781.0,0.0024]
[1725330185893,3.23606075,59782.0,59781.0,0.0024]
[1725330186108,1.77342075,59782.0,59781.0,0.0024]
[1725330186307,1.54918914,59782.0,59781.0,0.0024]
[1725330186498,1.48051777,59782.0,59781.0,0.0024]
[1725330186698,0.13051777,59782.0,59781.0,0.0024]
[1725330187198,1.48051777,59782.0,59781.0,0.0024]
[1725330187397,1.61609514,59782.0,59781.0,0.0024]
[1725330188197,1.54742377,59782.0,59781.0,0.0024]
[1725330188599,1.48051777,59782.0,59781.0,0.0024]
[1725330188800,0.13051777,59782.0,59781.0,0.0024]
[1725330189802,0.63235777,59782.0,59781.0,0.0024]
[1725330190406,1.98235777,59782.0,59781.0,0.0024]
[1725330190613,2.11793514,59782.0,59781.0,0.0024]
[1725330191016,1.61609514,59782.0,59781.0,0.0024]
[1725330191311,2.71793514,59782.0,59781.0,0.0024]
[1725330192102,2.64926377,59782.0,59781.0,0.0024]
[1725330196116,0.066915,59774.0,59773.0,0.00025109]
[1725330196315,0.177315,59774.0,59773.0,0.00025109]
[1725330196713,0.253215,59774.0,59773.0,0.00025109]
[1725330197704,0.257215,59774.0,59773.0,0.00125109]
[1725330198009,0.618015,59774.0,59773.0,0.00125109]
[1725330198208,1.72541623,59774.0,59773.0,0.00225109]
[1725330198406,1.87631623,59774.0,59773.0,0.00225109]
[1725330198601,1.94323123,59774.0,59773.0,0.00225109]
[1725330198919,2.55191623,59774.0,59773.0,0.00225109]
[1725330199112,2.62058253,59774.0,59773.0,0.00225109]
[1725330200006,2.71870253,59774.0,59773.0,0.00225109]
[1725330200213,3.22058253,59774.0,59773.0,0.00225109]
[1725330201112,3.28749753,59774.0,59773.0,1e-08]
[1725330201316,0.066916,59773.0,59759.0,0.0762]
[1725330201508,0.1504,59761.0,59759.0,0.0762]
[1725330201820,0.2604,59761.0,59759.0,0.0762]
[1725330203112,0.2604,59761.0,59759.0,0.0792]
[1725330204420,1.6104,59761.0,59759.0,0.0792]
[1725330204715,1.6164,59761.0,59760.0,0.001]
[1725330205111,1.68333,59761.0,59760.0,0.001]
[1725330205315,2.04413,59761.0,59760.0,0.001]
[1725330205514,0.066931,59760.0,59759.0,0.002]
[1725330205715,0.3262973,59760.0,59759.0,0.002]
[1725330205909,0.8282973,59760.0,59759.0,0.002]
[1725330206214,1.4282973,59760.0,59759.0,0.002]
[1725330206423,1.4272973,59760.0,59759.0,0.001]
[1725330206611,1.5065973,59760.0,59759.0,0.001]
[1725330206810,0.065936,59755.0,59754.0,0.00025109]
[1725330207020,0.707136,59755.0,59754.0,0.00025109]
[1725330208216,0.706136,59755.0,59754.0,0.00025109]
[1725330208713,0.345336,59755.0,59754.0,0.00025109]
[1725330209110,0.344336,59755.0,59754.0,0.00025109]
[1725330210214,0.34877845,59755.0,59754.0,0.00025109]
[1725330210815,0.34877845,59755.0,59754.0,1e-08]
[1725330210816,1.51775445,59755.0,59754.0,1e-08]
[1725330211023,1.52275445,59755.0,59754.0,0.00100001]
[1725330211723,1.88355445,59755.0,59754.0,0.00100001]
[1725330213329,1.28355445,59755.0,59754.0,0.00100001]
[1725330213921,0.71457845,59755.0,59754.0,0.00100001]
[1725330216534,0.71457845,59755.0,59726.0,0.3608]
[1725330216535,0.80064245,59755.0,59726.0,0.3608]
[1725330216830,0.15,59733.0,59732.0,0.0702]
[1725330217024,0.06,59733.0,59732.0,0.431]
[1725330217332,0.3608,59744.0,59734.0,0.066959]
[1725330217627,0.4608,59744.0,59743.0,0.0004]
[1725330217834,1.8108,59744.0,59743.0,0.0004]
[1725330218129,0.104505,59744.0,59743.0,0.0004]
[1725330218330,0.254505,59744.0,59743.0,0.0004]
[1725330219232,0.25,59744.0,59743.0,0.0004]
[1725330219826,0.251,59744.0,59743.0,0.0004]
[1725330220432,0.259,59744.0,59743.0,0.0004]
[1725330220626,0.109,59744.0,59743.0,1.10256]
[1725330222432,0.109,59744.0,59743.0,0.50256]
[1725330222736,0.259,59744.0,59743.0,0.0004]
[1725330223329,0.109,59744.0,59743.0,0.0004]
[1725330224232,0.259,59744.0,59743.0,0.0004]
[1725330225032,0.325948,59744.0,59743.0,0.0004]
[1725330228140,0.259,59744.0,59743.0,0.0004]
[1725330229739,0.325948,59744.0,59743.0,0.0004]
[1725330234545,0.109,59744.0,59743.0,0.0004]
[1725330234748,0.259,59744.0,59743.0,0.0004]
[1725330237349,0.31903558,59744.0,59743.0,0.0004]
[1725330243752,0.38598358,59744.0,59743.0,0.0004]
[1725330244852,0.46068358,59744.0,59743.0,0.0004]
[1725330245049,0.82148358,59744.0,59743.0,0.0004]
[1725330245255,0.89708358,59744.0,59743.0,0.0004]
[1725330248152,0.82148358,59744.0,59743.0,0.0004]
[1725330248649,0.066956,59737.0,59736.0,0.3608]
[1725330248851,0.2804,59737.0,59731.0,0.3608]
[1725330249050,0.578163,59732.0,59727.0,0.0735]
[1725330249249,0.578163,59732.0,59726.0,0.3237]
[1725330249250,0.1504,59728.0,59726.0,0.3237]
[1725330249451,0.0004,59727.0,59726.0,0.3237]
[1725330249754,0.1504,59728.0,59726.0,0.3237]
[1725330249954,0.1374,59728.0,59726.0,0.3237]
[1725330251054,0.1374,59728.0,59725.0,0.3608]
[1725330251258,0.0004,59726.0,59725.0,0.3608]
[1725330251552,0.0004,59726.0,59716.0,0.3237]
[1725330251553,0.4812,59726.0,59716.0,0.3237]
[1725330251756,0.1424,59717.0,59712.0,0.076]
[1725330252055,0.15,59713.0,59712.0,0.076]
[1725330252554,0.15,59713.0,59702.0,0.3237]
[1725330252555,0.142,59713.0,59702.0,0.3237]
[1725330252855,0.142,59713.0,59703.0,0.0769]
[1725330252856,0.1504,59706.0,59703.0,0.0769]
[1725330253066,0.0004,59704.0,59703.0,0.0769]
[1725330253259,0.1424,59706.0,59703.0,0.0769]
[1725330253555,0.1424,59706.0,59705.0,0.0004]
[1725330254162,0.1334,59706.0,59705.0,0.0004]
[1725330254853,0.2434,59706.0,59705.0,0.0004]
[1725330255865,0.2444,59706.0,59705.0,0.0004]
[1725330257370,0.001,59706.0,59705.0,0.0004]
[1725330257958,0.001,59706.0,59705.0,0.067392]
[1725330258159,0.151,59706.0,59705.0,0.067392]
[1725330258356,0.151,59706.0,59705.0,0.0004]
[1725330259358,0.271,59706.0,59705.0,0.0004]
[1725330259563,0.337991,59706.0,59705.0,0.0004]
[1725330259755,0.271,59706.0,59705.0,0.0004]
[1725330260471,0.151,59706.0,59705.0,0.0004]
[1725330261360,0.00025109,59720.0,59705.0,1.25288]
[1725330261656,0.17025109,59720.0,59719.0,0.428177]
[1725330262561,0.02025109,59720.0,59719.0,0.428177]
[1725330263773,0.02825109,59720.0,59719.0,0.3612]
[1725330265068,0.04125109,59720.0,59719.0,0.3612]
[1725330267159,0.04125109,59720.0,59719.0,0.428177]
[1725330267658,0.19125109,59720.0,59719.0,0.428177]
[1725330268269,0.19125109,59720.0,59719.0,0.3612]
[1725330270362,0.19125109,59720.0,59719.0,0.0004]
[1725330270566,0.25822609,59720.0,59719.0,0.0004]
[1725330270767,1.36058609,59720.0,59719.0,0.0004]
[1725330271773,1.42065159,59720.0,59707.0,0.3608]
[1725330271956,0.15,59710.0,59707.0,0.3608]
[1725330272162,0.0004,59708.0,59707.0,0.3608]
[1725330272469,0.1304,59708.0,59707.0,0.3608]
[1725330273075,0.1304,59708.0,59702.0,0.3237]
[1725330273370,0.15,59703.0,59702.0,0.3237]
[1725330273567,0.2604,59703.0,59702.0,0.3237]
[1725330274567,0.2614,59703.0,59702.0,0.3237]
[1725330275570,0.2624,59703.0,59702.0,0.3237]
[1725330275764,0.2624,59703.0,59702.0,0.6845]
[1725330276364,0.2624,59703.0,59702.0,0.3237]
[1725330276971,0.2624,59703.0,59702.0,0.6845]
[1725330277475,0.2624,59703.0,59702.0,0.3237]
[1725330277662,0.2624,59703.0,59697.0,0.5139]
[1725330277864,0.1504,59698.0,59697.0,0.5139]
[1725330278064,0.2604,59698.0,59697.0,0.5139]
[1725330278263,0.2604,59698.0,59697.0,0.4375]
[1725330279072,0.2604,59698.0,59697.0,0.3608]
[1725330279661,0.2614,59698.0,59697.0,0.3608]
[1725330279870,0.1114,59698.0,59697.0,0.3608]
[1725330280264,0.2614,59698.0,59697.0,0.3608]
[1725330280666,0.2624,59698.0,59697.0,0.3608]
[1725330280871,0.1124,59698.0,59697.0,0.3608]
[1725330282170,0.2624,59698.0,59697.0,0.3608]
[1725330282975,0.2624,59698.0,59692.0,0.141006]
[1725330283276,0.0004,59693.0,59692.0,0.141006]
[1725330283577,0.1304,59693.0,59692.0,0.141006]
[1725330284170,0.1304,59693.0,59692.0,0.074]
[1725330284363,0.1304,59693.0,59683.0,0.3608]
[1725330284364,0.067007,59692.0,59684.0,0.067015]
[1725330284572,0.1504,59685.0,59683.0,0.4357]
[1725330284962,0.1504,59685.0,59678.0,0.3608]
[1725330284963,0.3612,59684.0,59678.0,0.3608]
[1725330285162,0.217421,59679.0,59678.0,0.3608]
[1725330285362,0.28,59679.0,59678.0,0.3608]
[1725330285772,0.0004,59685.0,59678.0,0.3608]
[1725330285972,0.1304,59685.0,59684.0,0.0004]
[1725330288279,0.1314,59685.0,59684.0,0.0004]
[1725330290679,0.1314,59685.0,59684.0,0.159]
[1725330291582,0.1314,59685.0,59684.0,1.41164]
[1725330291769,0.0014,59685.0,59684.0,1.401056]
[1725330292080,0.0014,59685.0,59684.0,0.298416]
[1725330293776,0.0014,59685.0,59684.0,1.401056]
[1725330294586,0.0014,59685.0,59684.0,0.801056]
[1725330295074,0.1314,59685.0,59684.0,0.298416]
[1725330297886,0.0014,59685.0,59684.0,1.401056]
[1725330299103,0.0014,59685.0,59684.0,1.468072]
[1725330299387,0.00025109,59694.0,59693.0,0.067006]
[1725330299591,0.13025109,59694.0,59693.0,0.428206]
[1725330299788,0.13025109,59694.0,59693.0,0.3612]
[1725330299986,0.13845784,59694.0,59693.0,0.3612]
[1725330300286,0.20546284,59694.0,59693.0,0.3612]
[1725330300891,0.20946284,59694.0,59693.0,0.3612]
[1725330301295,0.21946284,59694.0,59693.0,0.3612]
[1725330301791,0.21946284,59694.0,59693.0,0.0004]
[1725330301792,1.32202284,59694.0,59693.0,0.0004]
[1725330302093,1.68282284,59694.0,59693.0,0.0004]
[1725330302481,3.03282284,59694.0,59693.0,0.0004]
[1725330303393,3.03739858,59694.0,59693.0,0.0004]
[1725330304799,2.43739858,59694.0,59693.0,0.0004]
[1725330305496,0.14425109,59694.0,59693.0,0.3612]
[1725330305684,0.30278117,59694.0,59693.0,0.0004]
[1725330305992,1.65278117,59694.0,59693.0,0.0004]
[1725330306195,1.71978617,59694.0,59693.0,0.0004]
[1725330306593,0.30278117,59694.0,59693.0,0.0004]
[1725330308392,0.29425109,59694.0,59693.0,0.0004]
[1725330308693,0.30249278,59694.0,59693.0,0.0004]
[1725330310190,0.29425109,59694.0,59693.0,0.428206]
[1725330310392,0.14425109,59694.0,59693.0,0.428206]
[1725330311401,0.20433186,59694.0,59693.0,0.428206]
[1725330315804,0.14425109,59694.0,59693.0,0.428206]
[1725330318301,0.07433186,59694.0,59693.0,1.530766]
[1725330318504,0.01425109,59694.0,59693.0,1.530766]
[1725330318693,0.01425109,59694.0,59693.0,1.597772]
[1725330320003,0.01425109,59694.0,59693.0,1.530766]
[1725330320199,0.01425109,59694.0,59693.0,0.428206]
[1725330320691,0.01425109,59694.0,59693.0,0.930766]
[1725330320890,0.01425109,59694.0,59693.0,0.428206]
[1725330325898,0.01425109,59694.0,59693.0,1.530766]
[1725330326613,0.01425109,59694.0,59693.0,0.428206]
[1725330327209,0.01425109,59694.0,59693.0,0.3612]
[1725330327508,0.08125609,59694.0,59693.0,0.3612]
[1725330328101,0.20125609,59694.0,59693.0,0.3612]
[1725330328421,0.13425109,59694.0,59693.0,0.3612]
[1725330329904,0.20125609,59694.0,59693.0,0.3612]
[1725330330109,0.56205609,59694.0,59693.0,0.0004]
[1725330330301,0.62214347,59694.0,59693.0,0.0004]
[1725330330503,0.56205609,59694.0,59693.0,0.0004]
[1725330331617,0.13425109,59694.0,59693.0,0.3612]
[1725330331905,0.13425109,59694.0,59693.0,0.0004]
[1725330334710,0.19433405,59694.0,59693.0,0.0004]
[1725330338213,0.07433405,59694.0,59693.0,0.067406]
[1725330339113,0.07433405,59694.0,59693.0,1.169966]
[1725330339319,0.07433405,59694.0,59693.0,1.248866]